[Event "Klatovy Open-C 2024"]
[Site "Klatovy"]
[Date "2024.07.01"]
[Round "3.7"]
[White "Kriha, Pavel"]
[Black "Berka, Lubos"]
[Result "0-1"]
[ECO "A25"]
[WhiteElo "1877"]
[BlackElo "1835"]
[Annotator "NA RC"]
[PlyCount "71"]
[EventDate "2024.06.21"]
[EventType "swiss"]
[EventCountry "CZE"]
[SourceTitle "playchess.com"]
[Source "ChessBase"]
[SourceQuality "1"]
[TimeControl "40/7200:0"]

1. c4 {[%emt 0:00:00]} e5 {[%emt 0:00:00]} 2. Nc3 {[%emt 0:00:00]} Nf6 {[%emt 0:00:00]} 3. g3 {[%emt 0:00:00]} Nc6 {[%emt 0:00:00]} 4. Bg2 {[%emt 0:00:00]} g6 {[%emt 0:00:00]} 5. Nf3 {[%emt 0:00:00]} d6 {[%emt 0:00:00]} 6. h3 {[%emt 0:00:00] A25: English Opening vs King's Indian with ...Nc6 but without early d3.} Bg7 {[%emt 0:00:00]} 7. O-O {[%emt 0:00:00]} O-O {[%emt 0:00:00]} 8. Kh2 {[%emt 0:00:00]} Nh5 {[%emt 0:00:49]} 9. d3 {[%emt 0:00:11]} f5 {[%emt 0:02:34]} 10. e3 {[%emt 0:00:27]} Nf6 {[%emt 0:02:10]} 11. a3 {[%emt 0:00:50]} h6 {[%emt 0:00:49]} 12. Qc2 {[%emt 0:00:29]} g5 {[%emt 0:03:51]} 13. Nd5 {[%emt 0:07:11]} Nxd5 {[%emt 0:02:55]} 14. cxd5 {[%emt 0:00:00]} Ne7 {[%emt 0:00:46]} 15. e4 {[%emt 0:00:00]} Ng6 {[%emt 0:04:09]} 16. Bd2 {[%emt 0:00:28]} g4 {[%emt 0:02:24]} 17. hxg4 {[%emt 0:00:50]} f4 {[%emt 0:02:36]} 18. Bh3 {[%emt 0:06:28]} h5 {[%emt 0:13:07]} 19. gxh5 {[%emt 0:01:57]} Bxh3 {[%emt 0:00:33]} 20. Kxh3 {[%emt 0:00:01]} Qd7+ {[%emt 0:03:04]} 21. g4 {[%emt 0:01:01]} Bf6 {[%emt 0:01:47]} 22. hxg6 {[%emt 0:00:19]} Kg7 {[%emt 0:00:00]} 23. Nh2 {[%emt 0:00:48]} Rh8+ {[%emt 0:00:13]} 24. Kg2 {[%emt 0:00:07]} Rxh2+ {[%emt 0:00:00]} 25. Kf3 {[%emt 0:01:28]} Bh4 {[%emt 0:05:10]} 26. Be1 {[%emt 0:00:34]} Rh3+ {[%emt 0:02:25]} ({Not} 26... Kxg6 27. Rg1 $17) 27. Ke2 {[%emt 0:00:00]} Qxg4+ {[%emt 0:00:48]} ({Less strong is} 27... Kxg6 28. Rg1 $17) 28. Kd2 {[%emt 0:02:28]} Rc8 {[%emt 0:01:08]} 29. Kc3 $2 {[%emt 0:11:53]} (29. Qa4 {is more resistant.} Kxg6 30. d4) 29... Qg2 {[%emt 0:03:16]} (29... Kxg6 30. f3 Bxe1+ (30... Rxf3 $2 {loses.} 31. Rxf3 Qxf3 32. Bxh4 $18) 31. Raxe1 $16) 30. Bd2 {[%emt 0:00:42]} Bxf2 {[%emt 0:04:28]} (30... Qxg6 31. Rg1 Bg5 32. Qa4 $14) 31. Kb3 {[%emt 0:00:35]} Bc5 {[%emt 0:06:45]} ({Weaker is} 31... Kxg6 32. Bxf4 Qxe4 (32... exf4 33. Rxf2 Qxe4 34. Rg1+ Kh6 35. Ka2 $11) 33. Rxf2 $15) (31... Qxe4 $142 32. Qc4 Qxc4+ (32... Qxg6 33. Rxf2 Qxd3+ 34. Qxd3 $11) (32... Rxd3+ $2 33. Bc3 $19) (32... Qxd3+ $2 33. Qxd3 Rxd3+ 34. Kc2 $19) 33. Kxc4 Rh2) 32. Bb4 $2 {[%emt 0:03:31]} (32. Ka2 {is tougher.} Kxg6 (32... Qxg6 33. Rad1 $15) (32... Be3 33. Qa4 $14) 33. Rae1) 32... Qxe4 {[%emt 0:01:38]} 33. Rad1 {[%emt 0:02:14]} Bxb4 {[%emt 0:01:59]} ({Weaker is} 33... Qxg6 34. Bxc5 dxc5 35. Rg1 $17) 34. axb4 {[%emt 1:15:28]} Qxd5+ {[%emt 0:50:36]} 35. Ka3 {[%emt 0:00:00]} c5 $19 {[%emt 0:00:00]} 36. b3 {[%emt 0:00:00]} 0-1

[Event "Klatovy Open-C 2024"]
[Site "Klatovy"]
[Date "2024.07.01"]
[Round "3.8"]
[White "Korsa, Jindrich"]
[Black "Fiser, Jiri"]
[Result "1-0"]
[ECO "B06"]
[WhiteElo "2036"]
[BlackElo "2134"]
[Annotator "TA"]
[PlyCount "111"]
[EventDate "2024.06.21"]
[EventType "swiss"]
[EventCountry "CZE"]
[SourceTitle "playchess.com"]
[Source "ChessBase"]
[SourceQuality "1"]
[TimeControl "40/7200:0"]

{[%evp 9,111,-12,-33,-33,-20,-29,-18,-33,-8,-16,-7,-10,12,15,10,14,11,0,12,-18,20,24,40,45,97,46,84,80,92,78,72,37,37,33,41,0,1,0,21,0,0,-30,-27,-21,-20,-290,0,0,0,0,0,0,0,0,20,0,0,0,0,0,0,-18,-8,0,0,0,0,0,0,0,0,0,0,0,0,0,0,0,0,-15,-25,-17,0,0,74,78,103,0,104,62,158,118,127,119,112,98,60,77,292,272,259,134,389,395]} 1. e4 {[%emt 0:00:00]} g6 {[%emt 0:00:00]} 2. Nc3 {[%emt 0:00:00]} Bg7 {[%emt 0:00:00]} 3. g4 {[%emt 0:00:00]} d6 {[%emt 0:00:00]} 4. Bg2 {[%emt 0:00:00]} c5 {[%emt 0:00:00]} 5. d3 {[%emt 0:00:00]} Nc6 {[%emt 0:00:00][%cal Bb8c6,Bc6d4,Bd4e2][%mdl 32]} 6. h3 {[%emt 0:00:00]} e6 {[%emt 0:01:19]} 7. Nge2 {[%emt 0:00:00]} Nge7 {[%emt 0:05:25]} 8. Ng3 {[%emt 0:00:00] The position is equal.} Nd4 {[%emt 0:00:55]} 9. O-O {[%emt 0:00:00]} Bd7 {[%emt 0:00:52]} 10. Nce2 {[%emt 0:00:00]} O-O {[%emt 0:04:11]} 11. c3 {[%emt 0:00:00]} Nxe2+ {[%emt 0:00:00]} 12. Qxe2 {[%emt 0:00:00]} Rb8 {[%emt 0:08:55]} 13. f4 {[%emt 0:00:00][%cal Bf2f4,Bf4f5][%mdl 32]} f5 {[%emt 0:00:00]} 14. Be3 {[%emt 0:00:00]} Qc8 {[%emt 0:20:21]} 15. Rad1 {[%emt 0:02:33]} fxg4 {[%emt 0:07:33]} 16. hxg4 {[%emt 0:00:00]} b5 {[%emt 0:03:14]} (16... Qc7 $14) 17. d4 {[%emt 0:02:35]} (17. e5 $16) 17... e5 {[%emt 0:07:00]} 18. f5 {[%emt 0:04:53] [#] aiming for dxc5.} cxd4 {[%emt 0:06:05]} 19. cxd4 {[%emt 0:00:00]} Nc6 {[%emt 0:00:00]} 20. d5 {[%emt 0:00:39]} Nd4 {[%emt 0:00:00]} 21. Qd2 {[%emt 0:00:04]} Qd8 {[%emt 0:06:11]} 22. Bg5 {[%emt 0:04:51]} Bf6 {[%emt 0:00:19]} 23. Bh6 {[%emt 0:00:15]} Bg7 {[%emt 0:00:58]} 24. Bxg7 {[%emt 0:00:00]} Kxg7 {[%emt 0:00:00]} 25. Ne2 {[%emt 0:00:00]} Nxe2+ {[%emt 0:00:28]} 26. Qxe2 {[%emt 0:00:00]} Qg5 {[%emt 0:00:18]} 27. Bf3 $2 {[%emt 0:06:09][%mdl 8192]} (27. Rd3 $11) 27... Rfc8 $2 {[%emt 0:02:52]} (27... gxf5 $19 28. exf5 Rxf5 (28... Bxf5 $2 29. a3 $19)) 28. Qd2 $11 {[%emt 0:00:40]} (28. Qf2 {seems wilder.} Rc7 29. Qd2 Kf6 30. Qb4) 28... Qxd2 {[%emt 0:02:16]} 29. Rxd2 {[%emt 0:00:00]} Rc4 {[%emt 0:00:38]} 30. Kf2 {[%emt 0:00:00]} Rbc8 {[%emt 0:00:00]} 31. Ke3 {[%emt 0:00:00][%cal Of5f6]} Rc2 {[%emt 0:01:18]} 32. Bd1 {[%emt 0:02:09]} Rxd2 {[%emt 0:00:11]} 33. Kxd2 {[%emt 0:00:00][%mdl 4096] Endgame. KRB-KRB} Kf6 {[%emt 0:01:11]} 34. Rf3 {[%emt 0:03:27]} b4 {[%emt 0:01:29] Dodges Ra3} 35. Bc2 {[%emt 0:03:56]} Kg5 {[%emt 0:01:48]} 36. Rh3 {[%emt 0:00:47]} h6 {[%emt 0:05:55]} (36... Kxg4 37. Rxh7 Be8 38. Rh8 $16 (38. Rxa7 gxf5 39. exf5 Rc4 $16)) 37. Bd3 {[%emt 0:01:40]} Ba4 {[%emt 0:10:11]} 38. Rh1 {[%emt 0:01:00]} a5 {[%emt 0:01:30]} 39. Rf1 {[%emt 0:04:03]} Bd7 {[%emt 0:01:23]} ({Don't play} 39... Kxg4 $6 40. Rg1+ (40. fxg6 Kg5 $11) 40... Kf3 41. Rxg6 $16 (41. fxg6 Kf2 $18)) 40. Ba6 {[%emt 0:02:49]} Rc7 {[%emt 0:00:25]} 41. Be2 {[%emt 2:04:00]} Be8 {[%emt 1:59:51]} 42. Rh1 {[%emt 0:03:26]} Ba4 {[%emt 0:01:18]} 43. Bd3 {[%emt 0:01:19] Dodges Rc2+} Be8 {[%emt 0:00:22]} 44. Bc2 {[%emt 0:03:46]} h5 {[%emt 0:00:00]} ({Don't take} 44... Kxg4 45. Rxh6 Rg7 46. Rh8 $15) 45. gxh5 {[%emt 0:01:31]} gxh5 {[%emt 0:00:00]} 46. Rg1+ {[%emt 0:00:03]} Kf6 {[%emt 0:02:20]} (46... Kf4 $11) 47. Rg8 $16 {[%emt 0:00:13]} Bf7 {[%emt 0:00:26]} 48. Rd8 {[%emt 0:00:00]} Ke7 {[%emt 0:00:00]} (48... Kg5 $1 $11 {remains equal.}) 49. Ra8 {[%emt 0:00:00][%cal Oc2b3]} Rc5 {[%emt 0:00:20]} (49... Kf6 $1 $14) 50. Ra7+ {[%emt 0:00:00]} Kf6 {[%emt 0:00:00]} 51. Rd7 {[%emt 0:00:00] White is more active.} h4 {[%emt 0:00:00][%cal Oc5c2] ...Rxc2+! would now be deadly.} 52. Rxd6+ {[%emt 0:00:00]} Kg5 {[%emt 0:00:00][%cal Oc5c2] ...Rxc2+! is the strong threat.} 53. Rd7 {[%emt 0:00:00]} Bh5 {[%emt 0:00:00] [#]} (53... Kf6 $16) 54. Rg7+ $1 $18 {[%emt 0:00:25]} Kf6 {[%emt 0:00:54]} 55. Rg1 {[%emt 0:00:18]} ({Only move:} 55. Rh7 $18 Kg5 56. Bd3) 55... h3 $2 {[%emt 0:00:10][%mdl 8192]} (55... Rc8 $16 56. Rg2 h3) 56. Rg3 {[%emt 0:01:50] Weighted Error Value: White=0.22 (precise) /Black=0.33.  Loses game:     	White=1     	Black=2      Missed win:     	---       	Black=1      Mistake:       	White=2     	Black=4      Inaccurate:     	White=5     	Black=2      OK:         	White=15    	Black=20     Best:        	White=3     	Black=2      Strong:       	White=1     	---} 1-0

[Event "Klatovy Open-C 2024"]
[Site "Klatovy"]
[Date "2024.07.01"]
[Round "3.9"]
[White "Vachal, Josef"]
[Black "Turner, Radek"]
[Result "1/2-1/2"]
[ECO "B01"]
[WhiteElo "2099"]
[BlackElo "2012"]
[Annotator "TA"]
[PlyCount "64"]
[EventDate "2024.06.21"]
[EventType "swiss"]
[EventCountry "CZE"]
[SourceTitle "playchess.com"]
[Source "ChessBase"]
[SourceQuality "1"]
[TimeControl "40/7200:0"]

{[%evp 9,64,-14,-11,-55,-64,-63,0,-8,0,-21,35,24,24,16,80,73,75,76,68,79,77,53,97,100,107,113,160,117,158,106,137,128,190,122,124,110,121,109,89,66,72,59,32,0,32,31,22,12,6,0,0,0,0,0,0,0,0]} 1. e4 {[%emt 0:00:00]} d5 {[%emt 0:01:15]} 2. exd5 {[%emt 0:00:00]} Qxd5 {[%emt 0:00:00]} 3. d4 {[%emt 0:00:00]} Nc6 {[%emt 0:00:00]} 4. Be3 {[%emt 0:02:08]} e5 {[%emt 0:09:32]} 5. Nc3 {[%emt 0:00:56]} Bb4 {[%emt 0:00:36][%cal Re5d4]} 6. a3 {[%emt 0:06:00]} Bxc3+ {[%emt 0:01:27]} 7. bxc3 {[%emt 0:00:00]} exd4 {[%emt 0:05:13]} (7... Qa5 $15 8. Nf3 Bg4) 8. cxd4 $11 {[%emt 0:00:00]} Nf6 {[%emt 0:01:18]} 9. Nf3 {[%emt 0:15:33]} Ng4 {[%emt 0:06:25]} ({Black should try} 9... O-O $11) 10. Bf4 {[%emt 0:04:57]} O-O {[%emt 0:03:08] [#] ...Qe4+ is the strong threat.} 11. Be2 {[%emt 0:11:40]} Qd7 {[%emt 0:05:31]} (11... Qe4 $11 {remains equal.} 12. Qd2 Rd8) 12. O-O $16 {[%emt 0:02:00]} Ne7 {[%emt 0:02:09]} 13. h3 {[%emt 0:05:39]} Ng6 {[%emt 0:00:00]} 14. Bg3 {[%emt 0:02:53] A strong pair of Bishops.} Nf6 {[%emt 0:00:00][%cal Bg4f6,Bf6d5,Bd5e7,Be7f5][%mdl 32]} 15. Bd3 {[%emt 0:02:06] Dodges Ne4} Nd5 {[%emt 0:03:30]} 16. Qd2 {[%emt 0:00:13]} Nde7 {[%emt 0:02:28]} 17. Rfe1 {[%emt 0:01:56]} c6 {[%emt 0:01:18]} (17... Nf5 $142) 18. c3 {[%emt 0:02:30] White is much more active. The black rooks are passive.} b6 {[%emt 0:03:37]} 19. Re2 {[%emt 0:00:48]} (19. a4 $142) 19... Nf5 {[%emt 0:03:55]} 20. Bh2 {[%emt 0:00:12]} a5 {[%emt 0:02:41]} (20... Nfh4 $16) 21. Ne5 {[%emt 0:06:36]} ({Better is} 21. Qc2 $18) 21... Nxe5 {[%emt 0:01:25]} 22. Rxe5 {[%emt 0:00:00]} ({Reject} 22. dxe5 $6 Rd8 23. Rd1 Qe7 $14) 22... Ne7 {[%emt 0:01:36]} 23. Rae1 {[%emt 0:04:18]} Ng6 {[%emt 0:00:00]} 24. Bxg6 {[%emt 0:03:30]} hxg6 {[%emt 0:00:00] Black is weak on the dark squares} 25. Re7 {[%emt 0:09:57]} Qd5 {[%emt 0:00:00]} 26. R7e5 {[%emt 0:04:39]} Qc4 {[%emt 0:00:21]} 27. Rb1 {[%emt 0:00:12]} Ra6 {[%emt 0:00:09]} 28. Bf4 {[%emt 0:01:30] The position is equal.} Be6 {[%emt 0:02:23]} 29. Qe2 {[%emt 0:00:15]} Qxe2 {[%emt 0:01:22]} 30. Rxe2 {[%emt 0:00:00]} b5 {[%emt 0:00:00]} 31. Bd6 {[%emt 0:00:00]} Rd8 {[%emt 0:00:00]} 32. Bc5 {[%emt 0:00:00]} a4 {[%emt 0:04:05] Black escapes into a draw.   Weighted Error Value: White=0.15 (very precise) /Black=0.19 (very precise) .  Mistake:       	White=2     	Black=5      Inaccurate:     	White=1     	Black=3      OK:         	White=9     	Black=11     Best:        	---       	Black=1} 1/2-1/2

[Event "Klatovy Open-C 2024"]
[Site "Klatovy"]
[Date "2024.07.01"]
[Round "3.10"]
[White "Malik, Zdenek"]
[Black "Ondrejat, Miroslav"]
[Result "0-1"]
[ECO "B53"]
[WhiteElo "1678"]
[BlackElo "1940"]
[Annotator "TA"]
[PlyCount "32"]
[EventDate "2024.06.21"]
[EventType "swiss"]
[EventCountry "CZE"]
[SourceTitle "playchess.com"]
[Source "ChessBase"]
[SourceQuality "1"]
[TimeControl "40/7200:0"]

{[%evp 11,32,-8,0,-74,0,-53,-49,-87,-79,-186,-179,-276,-277,-330,-342,-375,-373,-423,-319,-427,-414,-435,-426]} 1. e4 {[%emt 0:00:00]} c5 {[%emt 0:00:00]} 2. Nf3 {[%emt 0:00:00]} d6 {[%emt 0:00:00]} 3. d4 {[%emt 0:00:00]} cxd4 {[%emt 0:00:00]} 4. Qxd4 {[%emt 0:00:00]} Nc6 {[%emt 0:00:00]} 5. Bb5 {[%emt 0:00:00]} Bd7 {[%emt 0:00:00]} 6. Bxc6 {[%emt 0:00:00]} Bxc6 {[%emt 0:00:00]} 7. Bg5 {[%emt 0:00:00] [#]} (7. c4 $11 {keeps the balance.}) 7... h6 {[%emt 0:00:00]} (7... f6 $1 $17 {[%cal Rf6g5]} 8. Be3 e5) 8. Be3 {[%emt 0:01:19]} (8. Bh4 $11) 8... e5 $15 {[%emt 0:00:57]} 9. Qd3 {[%emt 0:00:30] [#] Black is slightly better.} f5 $1 {[%emt 0:03:20]} 10. Nfd2 {[%emt 0:02:42]} (10. Qe2 $17) 10... f4 $19 {[%emt 0:00:13]} 11. Bd4 (11. Bxf4 {was worth a try.} exf4 12. Nc3) 11... exd4 {[%emt 0:00:00]} 12. Qxd4 {[%emt 0:04:12]} Qf6 {[%emt 0:00:29]} 13. Qxf6 {[%emt 0:01:23]} Nxf6 {[%emt 0:00:00]} 14. f3 {[%emt 0:00:00]} O-O-O {[%emt 0:04:16] White must now prevent ...d5.} 15. Nc3 {[%emt 0:00:00]} d5 {[%emt 0:00:00]} 16. e5 {[%emt 0:00:45]} Re8 {[%emt 0:00:08] White did not feel at home in the position after the opening.   Weighted Error Value: White=0.62/Black=0.22 (precise) .  Mistake:       	White=3     	Black=1      Inaccurate:     	White=2     	---        OK:         	---       	Black=4      Best:        	---       	Black=2      Strong:       	---       	Black=1} 0-1

[Event "Klatovy Open-C 2024"]
[Site "Klatovy"]
[Date "2024.07.02"]
[Round "4.1"]
[White "Kopta, Pavel"]
[Black "Hlavac, Rudolf"]
[Result "1-0"]
[ECO "D25"]
[WhiteElo "2193"]
[BlackElo "1927"]
[Annotator "RC"]
[PlyCount "69"]
[EventDate "2024.06.21"]
[EventType "swiss"]
[EventCountry "CZE"]
[SourceTitle "playchess.com"]
[Source "ChessBase"]
[SourceQuality "1"]
[TimeControl "40/7200:0"]

1. d4 {[%emt 0:00:00]} d5 {[%emt 0:00:00]} 2. c4 {[%emt 0:00:00]} dxc4 {[%emt 0:00:00]} 3. Nf3 {[%emt 0:00:00]} Nf6 {[%emt 0:00:00]} 4. e3 {[%emt 0:00:00]} Bg4 {[%emt 0:00:00]} 5. Bxc4 {[%emt 0:00:00]} e6 {[%emt 0:00:00]} 6. h3 {[%emt 0:03:45]} Bh5 {[%emt 0:00:00]} 7. O-O {[%emt 0:02:20]} Nbd7 {[%emt 0:00:00]} 8. Nc3 {[%emt 0:02:25]} Bd6 {[%emt 0:00:00]} 9. e4 {[%emt 0:07:23]} e5 {[%emt 0:00:00]} 10. Be3 {[%emt 0:18:49]} O-O {[%emt 0:00:00]} 11. Re1 {[%emt 0:05:49]} c6 {[%emt 0:02:09]} 12. Be2 {[%emt 0:03:12]} Bxf3 {[%emt 0:14:03]} 13. Bxf3 {[%emt 0:00:41]} exd4 {[%emt 0:00:39]} 14. Bxd4 {[%emt 0:00:24]} Bc5 {[%emt 0:01:23]} 15. e5 {[%emt 0:01:36]} Ne8 {[%emt 0:09:56]} 16. Na4 {[%emt 0:05:47]} Bxd4 {[%emt 0:01:54]} 17. Qxd4 {[%emt 0:00:00]} Nb6 {[%emt 0:00:18]} 18. Qxd8 {[%emt 0:00:00]} Rxd8 {[%emt 0:00:00]} 19. Nc5 {[%emt 0:00:00]} Rb8 {[%emt 0:01:26]} 20. a4 {[%emt 0:01:12]} a5 {[%emt 0:00:11]} 21. Ra3 {[%emt 0:05:53]} Nc7 {[%emt 0:00:00]} 22. Rb3 {[%emt 0:00:00]} Nca8 {[%emt 0:00:00]} 23. Rd1 {[%emt 0:04:22]} Rfe8 {[%emt 0:02:32]} 24. Nd7 {[%emt 0:03:05]} Nxd7 {[%emt 0:03:47]} 25. Rxd7 {[%emt 0:01:12]} b5 {[%emt 0:04:32]} 26. Bxc6 {[%emt 0:03:02]} bxa4 {[%emt 0:07:21]} 27. Rbb7 {[%emt 0:01:33]} Rxb7 {[%emt 0:01:00]} 28. Rxb7 {[%emt 0:00:00]} Rf8 {[%emt 0:00:21]} 29. Bxa4 {[%emt 0:00:51]} g6 {[%emt 0:00:00]} 30. Bb3 {[%emt 0:00:00]} Kg7 {[%emt 0:03:13]} 31. f4 {[%emt 0:00:11]} h5 {[%emt 0:00:00]} 32. g4 {[%emt 0:00:01]} hxg4 {[%emt 0:00:00]} 33. hxg4 {[%emt 0:00:00]} Kh6 {[%emt 0:00:31]} 34. Kf2 {[%emt 0:01:47]} Rc8 {[%emt 0:00:00]} 35. Rxf7 {[%emt 0:01:34]} 1-0

[Event "Klatovy Open-C 2024"]
[Site "Klatovy"]
[Date "2024.07.02"]
[Round "4.3"]
[White "Chalus, Karel"]
[Black "Zednik, Zdenek"]
[Result "1-0"]
[ECO "A43"]
[WhiteElo "1982"]
[BlackElo "1882"]
[Annotator "RC"]
[PlyCount "83"]
[EventDate "2024.06.21"]
[EventType "swiss"]
[EventCountry "CZE"]
[SourceTitle "playchess.com"]
[Source "ChessBase"]
[SourceQuality "1"]
[TimeControl "40/7200:0"]

1. e4 {[%emt 0:00:00]} c5 {[%emt 0:00:00]} 2. Nc3 {[%emt 0:00:00]} g6 {[%emt 0:00:00]} 3. d4 {[%emt 0:00:00]} Bg7 {[%emt 0:00:51]} 4. d5 {[%emt 0:07:11]} d6 {[%emt 0:01:42]} 5. Be3 {[%emt 0:00:19]} a6 {[%emt 0:02:38]} 6. a4 {[%emt 0:02:24]} Qa5 {[%emt 0:11:11]} 7. Bd2 {[%emt 0:06:00]} Qc7 {[%emt 0:09:19]} 8. a5 {[%emt 0:01:02]} Nd7 {[%emt 0:01:07]} 9. f4 {[%emt 0:12:17]} Nh6 {[%emt 0:08:56]} 10. g4 {[%emt 0:05:11]} b5 {[%emt 0:17:49]} 11. axb6 {[%emt 0:01:26]} Nxb6 {[%emt 0:06:46]} 12. h3 {[%emt 0:03:26]} f5 {[%emt 0:01:16]} 13. exf5 {[%emt 0:04:25]} gxf5 {[%emt 0:00:20]} 14. g5 {[%emt 0:03:02]} Nf7 {[%emt 0:00:00]} 15. h4 {[%emt 0:06:15]} Bb7 {[%emt 0:00:07]} 16. Bg2 {[%emt 0:11:32]} e5 {[%emt 0:14:16]} 17. Nge2 {[%emt 0:00:19]} e4 {[%emt 0:00:22]} 18. Ng3 {[%emt 0:00:00]} O-O {[%emt 0:07:50]} 19. Nxf5 {[%emt 0:10:32]} Bxc3 {[%emt 0:00:32]} 20. Bxc3 {[%emt 0:01:20]} Nxd5 {[%emt 0:00:00]} 21. Ba5 {[%emt 0:09:36]} Qd7 {[%emt 0:06:35]} 22. Bh3 {[%emt 0:01:01]} Qb5 {[%emt 0:00:21]} 23. Bf1 {[%emt 0:16:13]} Qd7 {[%emt 0:00:16]} 24. Qg4 {[%emt 0:00:11]} Bc8 {[%emt 0:00:32]} 25. Bc4 {[%emt 0:00:25]} Qxf5 {[%emt 0:08:20]} 26. Qxf5 {[%emt 0:00:00]} Bxf5 {[%emt 0:00:00]} 27. Bxd5 {[%emt 0:00:00]} Rae8 {[%emt 0:00:50]} 28. Bc3 {[%emt 0:00:01]} Be6 {[%emt 0:02:15]} 29. Bxe6 {[%emt 0:02:31]} Rxe6 {[%emt 0:07:05]} 30. f5 {[%emt 0:00:13]} Ree8 {[%emt 0:00:42]} 31. Rxa6 {[%emt 0:00:00]} Ra8 {[%emt 0:00:00]} 32. Rxa8 {[%emt 0:00:00]} Rxa8 {[%emt 0:00:00]} 33. Ke2 {[%emt 0:00:15]} d5 {[%emt 0:00:00]} 34. Bf6 {[%emt 0:01:48]} Nd6 {[%emt 0:01:10]} 35. Rf1 {[%emt 0:00:00]} Ra7 {[%emt 0:00:04]} 36. g6 {[%emt 0:00:00]} d4 {[%emt 0:00:24]} 37. h5 {[%emt 0:00:26]} Rd7 {[%emt 0:00:51]} 38. Ra1 {[%emt 0:00:01]} d3+ {[%emt 0:01:14]} 39. cxd3 {[%emt 0:00:00]} exd3+ {[%emt 0:00:00]} 40. Kd1 {[%emt 0:00:00]} Rc7 {[%emt 0:00:40]} 41. Be5 {[%emt 1:59:34]} Rc6 {[%emt 1:59:39]} 42. Ra7 {[%emt 0:00:00]} 1-0

[Event "Klatovy Open-C 2024"]
[Site "Klatovy"]
[Date "2024.07.02"]
[Round "4.4"]
[White "Berka, Lubos"]
[Black "Navratil, Jiri"]
[Result "1/2-1/2"]
[ECO "B24"]
[WhiteElo "1835"]
[BlackElo "2058"]
[Annotator "NA RC"]
[PlyCount "36"]
[EventDate "2024.06.21"]
[EventType "swiss"]
[EventCountry "CZE"]
[SourceTitle "playchess.com"]
[Source "ChessBase"]
[SourceQuality "1"]
[TimeControl "40/7200:0"]

1. e4 {[%emt 0:00:00]} c5 {[%emt 0:00:00]} 2. Nc3 {[%emt 0:00:00]} e6 {[%emt 0:00:00]} 3. g3 {[%emt 0:00:00]} Nc6 {[%emt 0:00:00]} 4. Bg2 {[%emt 0:00:00]} Nf6 {[%emt 0:00:00]} 5. d3 {[%emt 0:00:00]} Be7 {[%emt 0:00:00]} 6. Nge2 {[%emt 0:00:00]} a6 {[%emt 0:00:00]} 7. a4 {[%emt 0:00:00]} O-O {[%emt 0:00:00]} 8. O-O {[%emt 0:00:00]} Rb8 {[%emt 0:03:38]} 9. Bf4 {[%emt 0:02:01]} d6 {[%emt 0:00:18]} 10. h3 {[%emt 0:01:21]} Bd7 {[%emt 0:05:12]} 11. Kh2 {[%emt 0:00:39]} b5 {[%emt 0:10:33]} 12. axb5 {[%emt 0:00:20]} axb5 {[%emt 0:00:00]} 13. b3 {[%emt 0:01:48]} b4 {[%emt 0:12:11]} 14. Na4 {[%emt 0:00:08]} Nh5 {[%emt 0:04:30]} 15. Be3 {[%emt 0:05:26]} Bf6 {[%emt 0:00:20]} 16. Rb1 {[%emt 0:00:05]} g6 {[%emt 0:00:00]} 17. Nf4 {[%emt 0:02:40]} Nxf4 {[%emt 0:00:00]} 18. Bxf4 {[%emt 0:00:00]} e5 {[%emt 0:04:08]} 1/2-1/2

[Event "Klatovy Open-C 2024"]
[Site "Klatovy"]
[Date "2024.07.02"]
[Round "4.5"]
[White "Novotny, Jaroslav"]
[Black "Korsa, Jindrich"]
[Result "1/2-1/2"]
[ECO "D02"]
[WhiteElo "2172"]
[BlackElo "2036"]
[Annotator "RC"]
[PlyCount "58"]
[EventDate "2024.06.21"]
[EventType "swiss"]
[EventCountry "CZE"]
[SourceTitle "playchess.com"]
[Source "ChessBase"]
[SourceQuality "1"]
[TimeControl "40/7200:0"]

1. d4 {[%emt 0:00:00]} Nf6 {[%emt 0:00:00]} 2. Nf3 {[%emt 0:00:00]} e6 {[%emt 0:00:00]} 3. Bf4 {[%emt 0:00:07]} d5 {[%emt 0:00:12]} 4. e3 {[%emt 0:02:35]} Nbd7 {[%emt 0:00:48]} 5. Nbd2 {[%emt 0:00:06]} Nh5 {[%emt 0:00:31]} 6. Bg5 {[%emt 0:05:53]} Be7 {[%emt 0:00:19]} 7. Bxe7 {[%emt 0:00:00]} Qxe7 {[%emt 0:00:00]} 8. c4 {[%emt 0:04:55]} Nhf6 {[%emt 0:00:00]} 9. Rc1 {[%emt 0:00:37]} c6 {[%emt 0:00:00]} 10. Bd3 {[%emt 0:05:15]} e5 {[%emt 0:01:39]} 11. dxe5 {[%emt 0:01:52]} Nxe5 {[%emt 0:00:00]} 12. Nxe5 {[%emt 0:00:39]} Qxe5 {[%emt 0:00:00]} 13. Qb3 {[%emt 0:10:30]} O-O {[%emt 0:00:00]} 14. O-O {[%emt 0:00:49]} Ne4 {[%emt 0:10:18]} 15. Nf3 {[%emt 0:08:39]} Qh5 {[%emt 0:00:14]} 16. cxd5 {[%emt 0:00:00]} cxd5 {[%emt 0:00:00]} 17. Be2 {[%emt 0:02:38]} Bg4 {[%emt 0:02:41]} 18. Rfd1 {[%emt 0:01:56]} Be6 {[%emt 0:05:03]} 19. Qb4 {[%emt 0:08:58]} g5 {[%emt 0:06:27]} 20. Rc7 {[%emt 0:07:41]} g4 {[%emt 0:04:01]} 21. Nd4 {[%emt 0:00:32]} Nxf2 {[%emt 0:04:56]} 22. Rf1 {[%emt 0:12:59]} Qe5 {[%emt 0:02:37]} 23. Nxe6 {[%emt 0:04:19]} fxe6 {[%emt 0:03:12]} 24. Qe7 {[%emt 0:00:11]} Nh3+ {[%emt 0:00:51]} 25. gxh3 {[%emt 0:05:13]} Qxe3+ {[%emt 0:00:00]} 26. Kh1 {[%emt 0:00:31]} Rxf1+ {[%emt 0:00:00]} 27. Bxf1 {[%emt 0:00:16]} Qe4+ {[%emt 0:00:00]} 28. Kg1 {[%emt 0:00:34]} Qe3+ {[%emt 0:04:16]} 29. Kh1 {[%emt 0:00:19]} Qf3+ {[%emt 0:00:39]} 1/2-1/2